[Event "Czech Extraliga 2023-24"]
[Site "Czech Republic"]
[Date "2024.04.06"]
[Round "9.4"]
[White "Janik, Igor"]
[Black "Ponizil, Cyril"]
[Result "1-0"]
[ECO "A37"]
[WhiteElo "2505"]
[BlackElo "2467"]
[Annotator "TA"]
[PlyCount "117"]
[EventDate "2023.10.14"]
[EventCountry "CZE"]
[SourceTitle "playchess.com"]
[Source "ChessBase"]
[SourceQuality "1"]
[TimeControl "40/5400+30:1800+30"]

{[%evp 37,117,0,-13,-9,-12,-17,0,-12,-18,-13,-16,-9,-2,-3,0,0,20,22,41,42,39,42,38,23,32,32,32,12,37,8,27,29,65,12,6,7,22,16,33,41,38,28,22,36,51,31,89,97,178,167,398,391,373,437,421,383,445,445,429,413,380,384,452,452,422,369,365,372,352,341,379,353,425,420,481,475,552,432,543,554,573,572]} 1. c4 {[%emt 0:00:02]} c5 {[%emt 0:00:47]} 2. Nc3 {[%emt 0:00:16]} Nc6 {[%emt 0:00:12]} 3. Nf3 {[%emt 0:00:06]} e5 {[%emt 0:02:50]} 4. g3 {[%emt 0:00:08]} g6 {[%emt 0:00:07]} 5. Bg2 {[%emt 0:00:05]} Bg7 {[%emt 0:00:05]} 6. d3 {[%emt 0:00:27]} Nge7 {[%emt 0:00:49]} 7. O-O {[%emt 0:00:22]} O-O {[%emt 0:00:06]} 8. Bg5 {[%emt 0:00:04]} h6 {[%emt 0:00:15] A37: Symmetrical English vs ...g6: 4 Bg2 Bg7 5 Nf3.} 9. Bxe7 {[%emt 0:00:05]} Nxe7 {[%emt 0:00:59]} 10. Nd2 {[%emt 0:01:23]} d6 {[%emt 0:00:10]} 11. a3 {[%emt 0:01:21]} Rb8 {[%emt 0:04:06]} 12. Rb1 {[%emt 0:01:54]} b6 {[%emt 0:01:06]} 13. e3 {[%emt 0:07:29]} Be6 {[%emt 0:00:51]} 14. Qa4 {[%emt 0:02:26]} d5 {[%emt 0:06:38]} 15. cxd5 {[%emt 0:02:44]} Nxd5 {[%emt 0:00:07]} 16. Nxd5 {[%emt 0:02:16]} Bxd5 {[%emt 0:00:04]} 17. Bxd5 {[%emt 0:02:22]} Qxd5 {[%emt 0:00:04]} 18. Rfd1 {[%emt 0:00:37]} Rbd8 {[%emt 0:09:23]} 19. Ne4 {[%emt 0:02:32]} f5 {[%emt 0:00:23]} 20. Nc3 {[%emt 0:00:22]} Qf3 {[%emt 0:00:51]} 21. Rd2 $1 {[%emt 0:03:57]} h5 {[%emt 0:06:01]} 22. Qd1 {[%emt 0:01:33]} Qc6 {[%emt 0:01:01]} 23. e4 {[%emt 0:01:41]} Rd4 {[%emt 0:04:16]} 24. Qe2 {[%emt 0:03:57]} f4 {[%emt 0:10:08]} 25. Nd5 {[%emt 0:02:41]} Kh7 {[%emt 0:08:52]} 26. Rc2 {[%emt 0:04:15]} f3 {[%emt 0:01:52]} 27. Qf1 {[%emt 0:03:02]} Rd8 {[%emt 0:01:31]} 28. b4 {[%emt 0:03:20]} Bf8 {[%emt 0:03:19]} 29. b5 {[%emt 0:01:34]} Qe6 {[%emt 0:00:06]} 30. Rc4 {[%emt 0:00:20]} Bh6 {[%emt 0:05:05]} 31. h3 {[%emt 0:05:14]} Rf8 {[%emt 0:06:00]} 32. Kh2 {[%emt 0:00:38]} Bd2 {[%emt 0:06:29]} 33. Rb2 {[%emt 0:02:44]} Ba5 {[%emt 0:00:05]} 34. h4 {[%emt 0:02:59]} Kg7 {[%emt 0:04:09]} 35. Rxd4 {[%emt 0:01:02]} ({White should try} 35. Qd1 $14) 35... exd4 $11 {[%emt 0:00:02]} 36. Qc1 {[%emt 0:00:19]} Qe5 $1 {[%emt 0:03:10]} 37. Rc2 {[%emt 0:01:31]} Rf7 {[%emt 0:07:21]} 38. Qg5 {[%emt 0:03:49]} Qxg5 {[%emt 0:00:06]} 39. hxg5 {[%emt 0:00:01]} Be1 {[%emt 0:00:07]} 40. Nf4 {[%emt 0:08:07]} Kh7 {[%emt 0:06:06]} 41. a4 {[%emt 0:40:35]} Bc3 {[%emt 0:30:23]} (41... Kg7 $14) 42. Nd5 $16 {[%emt 0:01:03]} Be1 {[%emt 0:00:02] [#]} (42... c4 $16 43. dxc4 Ba5) 43. g4 $1 $18 {[%emt 0:05:40]} c4 $2 {[%emt 0:00:00]} (43... Kg7) 44. Rxc4 $18 {[%emt 0:00:00]} Bxf2 {[%emt 0:00:00]} 45. Nf6+ {[%emt 0:00:00]} Kg7 {[%emt 0:00:00]} 46. Rc8 {[%emt 0:00:00]} ({Less strong is} 46. gxh5 gxh5 47. Rc6 Kg6 $18) 46... Re7 {[%emt 0:00:00]} 47. gxh5 {[%emt 0:00:00]} gxh5 {[%emt 0:00:00]} 48. Nxh5+ {[%emt 0:00:00]} Kg6 {[%emt 0:00:00]} 49. Nf4+ {[%emt 0:00:00]} Kg7 {[%emt 0:00:00]} 50. Rc6 {[%emt 0:00:00]} (50. Kh3 Be3 51. Nh5+ Kh7 $11) 50... Re5 {[%emt 0:00:00]} 51. Rg6+ {[%emt 0:00:00]} Kh7 {[%emt 0:00:00] [#]} 52. Rh6+ $1 {[%emt 0:00:00]} Kg8 {[%emt 0:00:00]} 53. Rh3 {[%emt 0:00:00]} Rxg5 {[%emt 0:00:00]} 54. Rxf3 {[%emt 0:00:00]} Be1 {[%emt 0:00:00]} 55. Ne6 {[%emt 0:00:00]} Rh5+ {[%emt 0:00:00]} 56. Kg2 {[%emt 0:00:00]} Bc3 {[%emt 0:00:00]} 57. Rf8+ {[%emt 0:00:00]} Kh7 {[%emt 0:00:00]} 58. Rf7+ {[%emt 0:00:00]} Kh6 {[%emt 0:00:00]} 59. Rxa7 {[%emt 0:00:00]} 1-0

[Event "Czech Extraliga 2023-24"]
[Site "Czech Republic"]
[Date "2024.04.06"]
[Round "9.4"]
[White "Cvek, Robert"]
[Black "Zwardon, Vojtech"]
[Result "1/2-1/2"]
[ECO "A37"]
[WhiteElo "2450"]
[BlackElo "2452"]
[Annotator "TA"]
[PlyCount "20"]
[EventDate "2023.10.14"]
[EventCountry "CZE"]
[SourceTitle "playchess.com"]
[Source "ChessBase"]
[SourceQuality "1"]
[TimeControl "40/5400+30:1800+30"]

{[%evp 11,20,0,6,8,7,0,0,0,0,-2,3]} 1. Nf3 {[%emt 0:00:03]} c5 {[%emt 0:00:00]} 2. c4 {[%emt 0:01:54]} g6 {[%emt 0:00:02]} 3. g3 {[%emt 0:00:30]} Bg7 {[%emt 0:00:02]} 4. Bg2 {[%emt 0:00:09]} Nc6 {[%emt 0:00:02]} 5. Nc3 {[%emt 0:00:17]} d6 {[%emt 0:00:02]} 6. O-O {[%emt 0:00:56]} Bg4 {[%emt 0:00:03] The position is equal.} 7. a3 {[%emt 0:01:31]} Qd7 {[%emt 0:00:04]} 8. Rb1 {[%emt 0:04:20]} Bh3 {[%emt 0:00:03]} 9. b4 {[%emt 0:00:22]} Bxg2 {[%emt 0:00:03]} 10. Kxg2 {[%emt 0:00:03]} Nf6 {[%emt 0:00:09] A rather calm draw.   Weighted Error Value: White=0.00 (flawless) /Black=0.01 (flawless) .  OK:         	White=1     	Black=2} 1/2-1/2

[Event "Czech Extraliga 2023-24"]
[Site "Czech Republic"]
[Date "2024.04.06"]
[Round "9.5"]
[White "Simacek, Pavel"]
[Black "Kraus, Tomas"]
[Result "1/2-1/2"]
[ECO "D36"]
[WhiteElo "2446"]
[BlackElo "2488"]
[Annotator "TA"]
[PlyCount "46"]
[EventDate "2023.10.14"]
[EventCountry "CZE"]
[SourceTitle "playchess.com"]
[Source "ChessBase"]
[SourceQuality "1"]
[TimeControl "40/5400+30:1800+30"]

{[%evp 18,46,17,17,18,27,19,15,23,18,20,26,17,22,20,13,18,16,16,29,28,25,43,29,25,0,31,8,7,0,0]} 1. d4 {[%emt 0:00:07]} d5 {[%emt 0:00:26]} 2. c4 {[%emt 0:00:09]} e6 {[%emt 0:00:37]} 3. Nc3 {[%emt 0:00:18]} Nf6 {[%emt 0:01:00]} 4. cxd5 {[%emt 0:00:31]} exd5 {[%emt 0:00:29]} 5. Bg5 {[%emt 0:00:23]} c6 {[%emt 0:01:36]} 6. e3 {[%emt 0:00:31]} h6 {[%emt 0:00:44]} 7. Bh4 {[%emt 0:00:22]} Be7 {[%emt 0:00:51]} 8. Bd3 {[%emt 0:01:14]} Ne4 {[%emt 0:00:05]} 9. Bxe7 {[%emt 0:01:34]} Qxe7 {[%emt 0:00:03]} 10. Qc2 {[%emt 0:03:34][%cal Oc3d5] [#] aiming for Nxd5!} Bf5 {[%emt 0:02:03]} 11. Bxe4 {[%emt 0:03:38]} Bxe4 {[%emt 0:02:44]} 12. Nxe4 {[%emt 0:00:07]} Qxe4 {[%emt 0:00:26]} 13. Qxe4+ {[%emt 0:00:24]} dxe4 {[%emt 0:00:06]} 14. Ne2 {[%emt 0:00:13]} Nd7 {[%emt 0:05:08]} 15. Ng3 {[%emt 0:02:58]} Nf6 {[%emt 0:02:23]} 16. Rc1 {[%emt 0:02:54]} g6 {[%emt 0:13:43]} 17. Rc5 {[%emt 0:12:06]} Nd7 {[%emt 0:05:43] Inhibits Re5+.} 18. Ra5 {[%emt 0:01:45]} f5 {[%emt 0:06:08]} 19. h4 {[%emt 0:01:17]} b6 {[%emt 0:08:10]} 20. Ra4 {[%emt 0:05:45]} Rf8 {[%emt 0:04:05]} 21. Ne2 {[%emt 0:01:53]} Rf6 {[%emt 0:13:06]} 22. Nf4 {[%emt 0:14:42]} Rd6 {[%emt 0:02:36]} 23. Ke2 {[%emt 0:06:10]} Kf7 {[%emt 0:03:47] Weighted Error Value: White=0.06 (flawless) /Black=0.06 (flawless) .  Inaccurate:     	---       	Black=1      OK:         	White=4     	Black=4} 1/2-1/2

[Event "Czech Extraliga 2023-24"]
[Site "Czech Republic"]
[Date "2024.04.06"]
[Round "9.5"]
[White "Omelja, Artem"]
[Black "Bartel, Mateusz"]
[Result "1/2-1/2"]
[ECO "D94"]
[WhiteElo "2444"]
[BlackElo "2647"]
[Annotator "TA"]
[PlyCount "64"]
[EventDate "2023.10.14"]
[EventCountry "CZE"]
[SourceTitle "playchess.com"]
[Source "ChessBase"]
[SourceQuality "1"]
[TimeControl "40/5400+30:1800+30"]

{[%evp 15,64,32,25,33,35,36,36,38,24,31,31,29,39,27,37,14,18,20,22,4,3,10,11,12,33,33,43,17,9,11,50,10,12,0,0,0,0,0,0,0,0,0,0,0,0,0,0,0,0,0,0]} 1. Nf3 {[%emt 0:01:39]} d5 {[%emt 0:00:22]} 2. e3 {[%emt 0:00:07]} Nf6 {[%emt 0:01:07]} 3. c4 {[%emt 0:00:08]} c6 {[%emt 0:00:12]} 4. Nc3 {[%emt 0:00:13]} g6 {[%emt 0:00:42]} 5. d4 {[%emt 0:00:14]} Bg7 {[%emt 0:00:08]} 6. Be2 {[%emt 0:00:47]} O-O {[%emt 0:00:39]} 7. O-O {[%emt 0:00:09]} Be6 {[%emt 0:10:25]} 8. cxd5 {[%emt 0:15:00]} cxd5 {[%emt 0:01:08]} 9. Qb3 {[%emt 0:01:33]} Qb6 {[%emt 0:00:46]} 10. Qxb6 {[%emt 0:02:09]} axb6 {[%emt 0:00:04]} 11. Bd2 {[%emt 0:02:42] White is slightly better.} Ne4 {[%emt 0:05:16]} 12. Rfc1 {[%emt 0:02:33]} Nc6 {[%emt 0:02:46]} 13. Be1 {[%emt 0:02:35]} f5 {[%emt 0:03:22]} 14. g3 {[%emt 0:01:50][%cal Ob2b4]} h6 {[%emt 0:00:25]} 15. Nh4 {[%emt 0:08:43]} Bf7 {[%emt 0:12:50]} 16. f4 {[%emt 0:03:02]} Rfc8 {[%emt 0:00:14]} 17. Nb5 {[%emt 0:02:36]} e6 {[%emt 0:01:06]} 18. Nf3 {[%emt 0:00:45]} Bf8 {[%emt 0:00:20]} 19. a3 {[%emt 0:06:35]} Na5 {[%emt 0:05:07]} 20. Bxa5 {[%emt 0:03:50]} bxa5 {[%emt 0:00:06]} 21. Nc7 {[%emt 0:06:52]} Rab8 {[%emt 0:01:11]} 22. Ne5 {[%emt 0:00:45]} Bd6 {[%emt 0:08:11]} (22... Nc5 $5 23. dxc5 (23. Rxc5 Bxc5 24. Nxd5 exd5 $15) 23... Rxc7 $11) 23. Nb5 {[%emt 0:05:24]} Be8 {[%emt 0:01:15] The position is equal.} 24. Na7 {[%emt 0:00:52] A dynamic duo of knights.} Rd8 {[%emt 0:03:49]} 25. Bb5 {[%emt 0:02:25]} Bf7 {[%emt 0:02:12] [#] ...Ra8 is the strong threat.} 26. Bd3 {[%emt 0:04:11]} Be8 $1 {[%emt 0:00:06]} 27. Rc2 {[%emt 0:01:40]} Ba4 {[%emt 0:01:17] White must now prevent ...Bxe5.} (27... Ra8 $5 28. Nb5 $8 Bxb5 29. Bxb5 Kg7 $16) 28. Rcc1 {[%emt 0:01:54]} Kg7 {[%emt 0:06:03]} 29. Bb5 {[%emt 0:01:05]} Bb3 {[%emt 0:03:18] [#] Hoping for ...Ra8.} 30. Bd3 {[%emt 0:00:45]} Ba4 $1 {[%emt 0:01:09]} 31. Bb5 {[%emt 0:04:25]} Bb3 {[%emt 0:01:24] ...Ra8 would now be deadly.} 32. Bd3 {[%emt 0:00:10]} Ba4 $1 {[%emt 0:00:05] Weighted Error Value: White=0.06 (flawless) /Black=0.04 (flawless) .  Inaccurate:     	White=2     	Black=1      OK:         	White=8     	Black=7      Strong:       	---       	Black=3} 1/2-1/2

[Event "Czech Extraliga 2023-24"]
[Site "Czech Republic"]
[Date "2024.04.06"]
[Round "9.5"]
[White "Piesik, Piotr"]
[Black "Haba, Petr"]
[Result "1-0"]
[ECO "D18"]
[WhiteElo "2421"]
[BlackElo "2437"]
[Annotator "TA"]
[PlyCount "57"]
[EventDate "2023.10.14"]
[EventCountry "CZE"]
[SourceTitle "playchess.com"]
[Source "ChessBase"]
[SourceQuality "1"]
[TimeControl "40/5400+30:1800+30"]

{[%evp 22,57,0,-4,0,-4,31,17,37,39,110,88,207,200,206,110,106,105,157,160,158,122,145,143,120,110,122,102,181,116,199,186,220,241,232,199,506,502]} 1. d4 {[%emt 0:00:10]} d5 {[%emt 0:00:36]} 2. c4 {[%emt 0:00:13]} c6 {[%emt 0:00:21]} 3. Nc3 {[%emt 0:00:35]} Nf6 {[%emt 0:00:23]} 4. Nf3 {[%emt 0:00:34]} dxc4 {[%emt 0:00:39]} 5. a4 {[%emt 0:00:09]} Bf5 {[%emt 0:00:28]} 6. e3 {[%emt 0:00:31]} e6 {[%emt 0:00:24]} 7. Bxc4 {[%emt 0:00:15]} Bb4 {[%emt 0:00:14]} 8. O-O {[%emt 0:00:14]} O-O {[%emt 0:01:27]} 9. Nh4 {[%emt 0:00:54]} Nbd7 {[%emt 0:00:57]} 10. Nxf5 {[%emt 0:01:44]} exf5 {[%emt 0:00:07]} 11. Qc2 {[%emt 0:00:03]} g6 {[%emt 0:00:12]} 12. f3 {[%emt 0:05:10]} Rc8 {[%emt 0:02:45]} 13. Kh1 {[%emt 0:22:14]} Nb6 {[%emt 0:08:54] Repels e4} 14. Bb3 {[%emt 0:05:17]} c5 {[%emt 0:10:34] The position is equal.} 15. dxc5 {[%emt 0:10:02]} Bxc5 {[%emt 0:10:37]} (15... Nbd7 $14) 16. e4 $16 {[%emt 0:07:46]} f4 {[%emt 0:11:12]} 17. Bxf4 $18 {[%emt 0:03:02] Strongly threatening Rad1.} Nh5 {[%emt 0:00:05] [#]} 18. Qd2 {[%emt 0:00:29]} (18. Bd2 $1 $18) 18... Nxf4 $16 {[%emt 0:08:48]} 19. Qxf4 {[%emt 0:00:06] Threatens to win with e5.} Qd4 {[%emt 0:00:07] [#]} (19... Bb4 $142) 20. a5 $1 {[%emt 0:08:11]} Nc4 {[%emt 0:06:25]} 21. Rfd1 {[%emt 0:03:51]} Qe5 {[%emt 0:01:32]} 22. Qxe5 {[%emt 0:00:23]} Nxe5 {[%emt 0:00:02] Black is weak on the light squares} 23. Rd5 $36 {[%emt 0:04:35][%mdl 2048] White is really pushing.} Rfe8 {[%emt 0:00:14]} 24. h3 {[%emt 0:01:29] f4 is the strong threat.} g5 {[%emt 0:08:12]} (24... Bb4 $16) 25. Ne2 {[%emt 0:02:54]} (25. a6 $18 Re7 26. axb7 Rxb7 27. Rxe5 Rxb3 28. Rxg5+ Kf8 29. Ra2) 25... Be3 {[%emt 0:12:58]} (25... Bf8 $16 {keeps fighting.} 26. Rad1 Rc5 27. Rxc5 Bxc5) 26. Ng3 {[%emt 0:01:46] Black must now prevent Nf5.} Rc1+ {[%emt 0:00:33]} 27. Rxc1 {[%emt 0:00:06]} Bxc1 {[%emt 0:00:01]} 28. Nh5 {[%emt 0:05:35] aiming for Nf6+.} Kh8 $2 {[%emt 0:00:40]} (28... Kf8 29. Ba4 Nc6) 29. Ba4 {[%emt 0:00:28] Weighted Error Value: White=0.19 (very precise) /Black=0.52.  Mistake:       	White=2     	Black=6      Inaccurate:     	---       	Black=1      OK:         	White=8     	Black=5      Best:        	White=1     	---} 1-0

[Event "Czech Extraliga 2023-24"]
[Site "Czech Republic"]
[Date "2024.04.06"]
[Round "9.5"]
[White "Shagbazyan, Taron"]
[Black "Polak, Tomas"]
[Result "1/2-1/2"]
[ECO "A50"]
[WhiteElo "2403"]
[BlackElo "2525"]
[Annotator "TA"]
[PlyCount "83"]
[EventDate "2023.10.14"]
[EventCountry "CZE"]
[SourceTitle "playchess.com"]
[Source "ChessBase"]
[SourceQuality "1"]
[TimeControl "40/5400+30:1800+30"]

{[%evp 11,83,18,35,29,21,17,29,16,57,34,85,54,100,94,104,57,44,52,68,52,50,50,65,51,62,56,44,44,35,43,41,40,45,0,44,2,30,13,25,9,112,105,105,110,110,8,14,17,12,23,21,0,18,0,0,0,0,0,0,0,8,8,17,6,10,0,0,0,0,0,0,0,0,0]} 1. d4 {[%emt 0:00:07]} Nf6 {[%emt 0:00:09]} 2. c4 {[%emt 0:00:08]} b6 {[%emt 0:00:17]} 3. Nc3 {[%emt 0:00:16]} Bb7 {[%emt 0:00:10]} 4. Qc2 {[%emt 0:00:53]} d5 {[%emt 0:01:03]} 5. cxd5 {[%emt 0:03:19]} Nxd5 {[%emt 0:00:17]} 6. Nf3 {[%emt 0:00:25]} e6 {[%emt 0:03:28]} 7. e4 {[%emt 0:01:55]} Nxc3 {[%emt 0:00:59]} 8. bxc3 {[%emt 0:00:08]} Be7 {[%emt 0:00:41]} 9. Bd3 {[%emt 0:04:00] White has an edge.} O-O {[%emt 0:11:52]} 10. O-O {[%emt 0:00:21]} c5 {[%emt 0:00:54]} ({Black should try} 10... Qc8 $14) 11. d5 $1 $16 {[%emt 0:01:49]} exd5 {[%emt 0:13:29]} (11... Nd7 $14) 12. exd5 {[%emt 0:00:25]} h6 {[%emt 0:00:29]} 13. Bf4 {[%emt 0:04:29]} (13. c4 $16) 13... Bd6 $14 {[%emt 0:03:02]} 14. Bxd6 {[%emt 0:10:41]} Qxd6 {[%emt 0:00:19]} 15. c4 {[%emt 0:01:40]} Nd7 {[%emt 0:05:22][%cal Ob6b5]} 16. a4 {[%emt 0:11:46]} Rfe8 {[%emt 0:07:47]} 17. a5 {[%emt 0:16:55]} Rab8 {[%emt 0:01:14]} 18. axb6 {[%emt 0:01:02]} axb6 {[%emt 0:00:08][%cal Ob6b5]} 19. Rab1 {[%emt 0:01:51]} Nf6 {[%emt 0:09:24]} 20. h3 {[%emt 0:12:48]} Bc8 {[%emt 0:05:04]} 21. Rfe1 {[%emt 0:02:22]} Bd7 {[%emt 0:03:52][%cal Ob6b5]} 22. Re3 {[%emt 0:07:58]} Kf8 {[%emt 0:14:12]} 23. Rbe1 {[%emt 0:02:49]} (23. Rxe8+ {simplifies} Bxe8 24. Bf1 Bd7 25. Ra1) 23... b5 {[%emt 0:01:38]} 24. Ne5 {[%emt 0:04:40]} bxc4 $1 {[%emt 0:05:38]} 25. Bxc4 {[%emt 0:00:13]} Bb5 {[%emt 0:02:17]} (25... Kg8 $11 {remains equal.}) 26. Bxb5 $16 {[%emt 0:01:58]} Rxb5 {[%emt 0:00:05] [#]} 27. Nc4 $1 {[%emt 0:01:11] Threatening mate with Rxe8+. White is more active.} Rxe3 {[%emt 0:05:16]} 28. Nxe3 {[%emt 0:01:25]} (28. Nxd6 $16 Rxe1+ 29. Kh2) 28... Rb8 {[%emt 0:01:00]} 29. Rd1 {[%emt 0:00:56]} Kg8 {[%emt 0:01:35]} 30. Nf5 {[%emt 0:00:24]} Qe5 {[%emt 0:00:18]} 31. Ne3 {[%emt 0:01:25] The position is equal.} (31. d6 {looks sharper.} Rb2 32. Ne7+ Kh8 33. Qf5) 31... Nd7 {[%emt 0:01:42]} 32. Nc4 {[%emt 0:00:21]} Qf4 {[%emt 0:00:27]} 33. Re1 {[%emt 0:01:43]} Qd4 {[%emt 0:01:08]} 34. d6 {[%emt 0:00:56]} Ra8 {[%emt 0:00:18]} 35. Kh2 {[%emt 0:01:42]} Qf4+ {[%emt 0:00:15]} 36. g3 {[%emt 0:00:22]} Qd4 {[%emt 0:00:59]} 37. Rd1 {[%emt 0:01:46]} Qf6 {[%emt 0:00:31]} 38. Kg2 {[%emt 0:00:50]} Qe6 {[%emt 0:00:15]} 39. Ne3 {[%emt 0:01:25]} Ra2 {[%emt 0:01:18]} 40. Qc4 {[%emt 0:00:27]} Qxc4 {[%emt 0:00:41]} 41. Nxc4 {[%emt 0:30:03]} g6 {[%emt 0:06:42]} 42. Re1 {[%emt 0:00:00] Weighted Error Value: White=0.12 (very precise) /Black=0.10 (very precise) .  Mistake:       	White=2     	Black=3      Inaccurate:     	White=2     	Black=3      OK:         	White=8     	Black=15     Best:        	White=1     	Black=1      Strong:       	White=2     	Black=1} 1/2-1/2

[Event "Czech Extraliga 2023-24"]
[Site "Czech Republic"]
[Date "2024.04.06"]
[Round "9.6"]
[White "Sasikiran, Krishnan"]
[Black "Konopka, Michal"]
[Result "1-0"]
[ECO "D45"]
[WhiteElo "2570"]
[BlackElo "2346"]
[Annotator "TA"]
[PlyCount "49"]
[EventDate "2023.10.14"]
[EventCountry "CZE"]
[SourceTitle "playchess.com"]
[Source "ChessBase"]
[SourceQuality "1"]
[TimeControl "40/5400+30:1800+30"]

{[%evp 21,49,0,4,0,0,0,0,0,0,0,0,0,37,27,58,55,112,113,257,177,219,209,409,410,954,523,611,575,609,609]} 1. d4 {[%emt 0:00:13]} d5 {[%emt 0:00:34]} 2. c4 {[%emt 0:00:22]} c6 {[%emt 0:01:18]} 3. Nf3 {[%emt 0:00:40]} Nf6 {[%emt 0:01:01]} 4. Nc3 {[%emt 0:01:41]} e6 {[%emt 0:04:50]} 5. e3 {[%emt 0:04:17]} Nbd7 {[%emt 0:01:10]} 6. Qc2 {[%emt 0:00:16]} Bd6 {[%emt 0:00:36]} 7. Be2 {[%emt 0:02:27]} O-O {[%emt 0:01:05]} 8. O-O {[%emt 0:00:47]} Qe7 {[%emt 0:02:46]} 9. b3 {[%emt 0:05:37]} b6 {[%emt 0:01:05]} 10. Bb2 {[%emt 0:05:52]} Bb7 {[%emt 0:01:02]} 11. a4 {[%emt 0:03:21]} a5 {[%emt 0:07:42]} 12. Rad1 {[%emt 0:05:36]} Rfe8 {[%emt 0:04:01]} 13. Bd3 {[%emt 0:06:57]} Rad8 {[%emt 0:05:32]} 14. e4 {[%emt 0:14:50] The position is equal.} dxe4 {[%emt 0:03:25]} 15. Nxe4 {[%emt 0:04:03]} Nxe4 {[%emt 0:14:40]} 16. Bxe4 {[%emt 0:00:10]} Nf8 {[%emt 0:47:43]} 17. Rfe1 Ng6 18. g3 Qf8 {[%emt 0:00:00] [#]} (18... f6 $14) 19. Ng5 $1 $16 {[%emt 0:06:58]} f5 {[%emt 0:00:00] A mistake that costs the game.} (19... Bb4 $16) 20. Bd3 {[%emt 0:22:30][%cal Be4d3,Bd3c4,Bc4e6][%mdl 32]} Bc8 {[%emt 0:02:00] [#]} 21. c5 $1 bxc5 (21... h6 22. cxd6 hxg5) 22. Bc4 $18 {[%cal Re1e6] Strongly threatening Rxe6.} cxd4 (22... Qf6 $142) 23. Bxd4 {[%cal Re1e6] Rxe6 is the strong threat. White is clearly winning.} (23. Bxe6+ Bxe6 24. Nxe6 Rxe6 25. Rxe6 Qf7 $18) 23... Bb4 24. Rxe6 Bxe6 25. Bxe6+ {[%emt 0:04:28] Weighted Error Value: White=0.40/Black=0.60.  Mistake:       	---       	Black=4      Inaccurate:     	White=2     	Black=2      OK:         	White=4     	Black=3      Best:        	White=1     	---        Strong:       	White=1     	---} ({Weaker is} 25. Nxe6 Rxe6 26. Bxe6+ Kh8 $18) 1-0

[Event "Czech Extraliga 2023-24"]
[Site "Czech Republic"]
[Date "2024.04.06"]
[Round "9.6"]
[White "Baklan, Vladimir"]
[Black "Finek, Vaclav"]
[Result "1/2-1/2"]
[ECO "C42"]
[WhiteElo "2531"]
[BlackElo "2431"]
[Annotator "TA"]
[PlyCount "43"]
[EventDate "2023.10.14"]
[EventCountry "CZE"]
[SourceTitle "playchess.com"]
[Source "ChessBase"]
[SourceQuality "1"]
[TimeControl "40/5400+30:1800+30"]

{[%evp 17,43,8,0,-12,40,0,0,0,4,0,9,-19,0,-45,-29,-20,-8,-4,-3,-2,0,-5,0,0,0,0,6,7]} 1. e4 {[%emt 0:00:03]} e5 {[%emt 0:00:10]} 2. Nf3 {[%emt 0:00:06]} Nf6 {[%emt 0:00:07]} 3. Nxe5 {[%emt 0:00:15]} d6 {[%emt 0:00:05]} 4. Nf3 {[%emt 0:00:06]} Nxe4 {[%emt 0:00:04]} 5. Nc3 {[%emt 0:00:17]} Nxc3 {[%emt 0:00:04]} 6. dxc3 {[%emt 0:00:04]} Be7 {[%emt 0:00:07]} 7. Bf4 {[%emt 0:00:07]} O-O {[%emt 0:00:33]} 8. Qd2 {[%emt 0:00:20]} Nd7 {[%emt 0:00:10]} 9. O-O-O {[%emt 0:00:11]} Nc5 {[%emt 0:00:33]} 10. h4 {[%emt 0:00:18]} c6 {[%emt 0:01:15]} (10... Re8 $11) 11. Re1 {[%emt 0:01:44][%cal Oe1e7] [#] Black must now prevent Rxe7!} d5 {[%emt 0:08:46]} 12. Bd3 {[%emt 0:01:12] Dodges Ne4} Bd6 {[%emt 0:14:18]} 13. Bxd6 {[%emt 0:08:51]} Qxd6 {[%emt 0:00:10]} 14. Kb1 {[%emt 0:00:10]} Bd7 {[%emt 0:04:17]} 15. h5 {[%emt 0:15:35]} h6 {[%emt 0:01:10]} 16. Ne5 {[%emt 0:01:22]} Rae8 {[%emt 0:03:55][%cal Ba8e8,Be8e7,Be7d7][%mdl 32] The position is equal.} 17. f4 {[%emt 0:02:42]} Re7 {[%emt 0:11:31]} 18. g4 {[%emt 0:14:22][%cal Bg2g4,Bg4g5][%mdl 32]} Rfe8 {[%emt 0:10:20]} 19. Reg1 {[%emt 0:11:53]} Nxd3 {[%emt 0:10:56]} 20. Qxd3 {[%emt 0:00:50]} f6 {[%emt 0:09:52]} 21. Nxd7 {[%emt 0:09:06]} Rxd7 {[%emt 0:00:13]} 22. g5 {[%emt 0:01:53] Weighted Error Value: White=0.11 (very precise) /Black=0.09 (flawless) .  Mistake:       	---       	Black=1      Inaccurate:     	White=3     	---        OK:         	White=6     	Black=6      Best:        	White=1     	---} 1/2-1/2